bitfinex/quotes_BTCUSD_20220212
["timestamp","ask_amount","ask_price","bid_price","bid_amount"]
[1644639728411,0.00131228,42414.0,42411.0,0.00069999]
[1644639728611,0.00131228,42414.0,42411.0,0.00051245]
[1644639729011,0.00131228,42414.0,42410.0,0.00028754]
[1644639729210,0.00131228,42414.0,42410.0,0.0008]
[1644639730212,0.00131228,42414.0,42410.0,0.00028754]
[1644639730518,0.26147917,42419.0,42413.0,0.00240209]
[1644639730861,0.26147917,42419.0,42416.0,0.07242164]
[1644639731063,0.26147917,42419.0,42417.0,0.0001]
[1644639735616,0.26147917,42419.0,42418.0,0.00199912]
[1644639740266,0.00145258,42419.0,42418.0,0.00199912]
[1644639743324,0.28317865,42422.0,42418.0,0.00199912]
[1644639745520,0.00146885,42419.0,42418.0,0.00199912]
[1644639750134,0.00051235,42423.0,42418.0,0.37788312]
[1644639750135,0.00212971,42423.0,42418.0,0.37788312]
[1644639750328,0.00212971,42423.0,42420.0,0.328584]
[1644639750527,0.00212971,42423.0,42422.0,0.328584]
[1644639750727,0.00161736,42423.0,42422.0,0.0474]
[1644639750929,0.00161736,42423.0,42422.0,0.375884]
[1644639751129,0.00161736,42423.0,42422.0,0.375984]
[1644639751427,0.00161736,42423.0,42422.0,0.0474]
[1644639751628,0.00161736,42423.0,42422.0,0.39900476]
[1644639751831,0.00161736,42423.0,42422.0,0.39910476]
[1644639752227,0.00161736,42423.0,42422.0,0.7011141]
[1644639752428,0.00161736,42423.0,42422.0,0.39135188]
[1644639753667,0.00161736,42423.0,42422.0,0.71998088]
[1644639754262,0.00161736,42423.0,42422.0,0.39135188]
[1644639754464,0.00161736,42423.0,42422.0,0.76728088]
[1644639754763,0.00161736,42423.0,42422.0,0.43865188]
[1644639755366,0.00182405,42425.0,42422.0,0.44081359]
[1644639755566,0.00135389,42425.0,42424.0,0.058935]
[1644639755765,0.00182405,42425.0,42424.0,0.059035]
[1644639755966,0.27092915,42425.0,42424.0,0.059035]
[1644639756171,0.27092915,42425.0,42424.0,0.0001]
[1644639756366,0.27092915,42425.0,42422.0,0.00216171]
[1644639756568,0.018798,42424.0,42422.0,0.00216171]
[1644639757722,0.27045899,42425.0,42422.0,0.00216171]
[1644639757923,0.018798,42424.0,42422.0,0.00216171]
[1644639759924,0.018798,42424.0,42422.0,0.08922905]
[1644639760125,0.27091266,42425.0,42423.0,0.0001]
[1644639760327,0.00135389,42425.0,42423.0,0.0001]
[1644639760526,0.20040349,42428.0,42423.0,0.0001]
[1644639760869,0.00045367,42426.0,42423.0,0.0001]
[1644639761669,0.25230851,42429.0,42423.0,0.0001]
[1644639761869,0.00044025,42427.0,42423.0,0.059042]
[1644639762070,0.00044025,42427.0,42424.0,0.0001]
[1644639762871,0.40253562,42433.0,42424.0,0.0001]
[1644639763073,0.40230462,42433.0,42430.0,0.25773843]
[1644639763370,0.000231,42433.0,42430.0,0.25773843]
[1644639763571,0.20063449,42434.0,42430.0,0.25773843]
[1644639763777,0.20063449,42435.0,42431.0,0.08527989]
[1644639763972,0.018798,42434.0,42431.0,0.08527989]
[1644639764472,0.20107672,42435.0,42431.0,0.08527989]
[1644639764733,0.00044223,42435.0,42431.0,0.08527989]
[1644639764931,0.00067323,42435.0,42431.0,0.08527989]
[1644639765129,0.000231,42435.0,42429.0,0.058934]
[1644639765330,0.018798,42434.0,42426.0,0.058937]
[1644639765530,0.018798,42434.0,42424.0,0.0001]
[1644639765531,0.21920149,42434.0,42424.0,0.0001]
[1644639765734,0.20040349,42433.0,42424.0,0.0001]
[1644639765931,0.20063449,42433.0,42425.0,0.00222601]
[1644639766131,0.25103019,42435.0,42426.0,0.07451776]
[1644639766132,0.20063449,42434.0,42426.0,0.07451776]
[1644639766332,0.018798,42433.0,42426.0,0.07451776]
[1644639766732,0.00044261,42432.0,42426.0,0.07451776]
[1644639766930,0.01924061,42432.0,42426.0,0.07451776]
[1644639767532,0.018798,42432.0,42426.0,0.07451776]
[1644639767933,0.00044261,42431.0,42426.0,0.07451776]
[1644639768132,0.08089006,42436.0,42426.0,0.07451776]
[1644639768764,0.250668,42432.0,42425.0,0.243332]
[1644639768968,0.250668,42432.0,42426.0,0.0001]
[1644639769564,0.250668,42432.0,42425.0,0.00222601]
[1644639769965,0.06902421,42428.0,42425.0,0.00222601]
[1644639770167,0.26646475,42427.0,42425.0,0.00222601]
[1644639770369,0.26646475,42427.0,42422.0,0.00192335]
[1644639770665,0.2250836,42423.0,42422.0,0.00192335]
[1644639771865,0.49215867,42423.0,42422.0,0.00192335]
[1644639773320,0.2250836,42423.0,42422.0,0.00192335]
[1644639773620,0.55732132,42426.0,42422.0,0.00192335]
[1644639773819,0.26844218,42423.0,42422.0,0.00192335]
[1644639774022,0.55744789,42426.0,42422.0,0.00192335]
[1644639775023,0.55744789,42426.0,42422.0,0.00240211]
[1644639775420,0.21536461,42425.0,42422.0,0.00240211]
[1644639775620,0.26266461,42425.0,42422.0,0.00240211]
[1644639776067,0.26266461,42425.0,42422.0,0.00192335]
[1644639778169,0.46306617,42425.0,42422.0,0.00192335]
[1644639778771,0.26266461,42425.0,42422.0,0.00192335]
[1644639779721,0.46306617,42425.0,42422.0,0.00192335]
[1644639779921,0.26266461,42425.0,42422.0,0.00192335]
[1644639780719,0.46306617,42425.0,42422.0,0.00192335]
[1644639781619,0.00729169,42413.0,42407.0,0.24885776]
[1644639781822,0.00729169,42413.0,42412.0,0.14632684]
[1644639785768,0.00867016,42413.0,42412.0,0.47682748]
[1644639786167,0.00867016,42413.0,42412.0,0.14824248]
[1644639786768,0.00867016,42413.0,42412.0,0.14834248]
[1644639787918,0.00867016,42413.0,42412.0,0.47692748]
[1644639788520,0.00867016,42413.0,42412.0,0.57692748]
[1644639788721,0.00867016,42413.0,42412.0,0.24834248]
[1644639789724,0.00867016,42413.0,42412.0,0.14834248]
[1644639790725,0.00867016,42413.0,42412.0,2.44516184]
[1644639790980,0.00867016,42413.0,42412.0,2.54516184]
[1644639792180,0.00867016,42413.0,42412.0,2.74425915]
[1644639792384,0.00867016,42413.0,42412.0,2.93146504]
[1644639793382,0.00867016,42413.0,42412.0,2.54516184]
[1644639793582,0.00867016,42413.0,42412.0,0.6327316]
[1644639793982,0.00867016,42413.0,42412.0,0.44552415]
[1644639795020,0.07498809,42424.0,42412.0,0.44552415]
[1644639795217,0.07498809,42424.0,42415.0,0.058952]
[1644639795418,0.07498809,42424.0,42416.0,0.0001]
[1644639795619,0.07498809,42424.0,42416.0,0.00028825]
[1644639796618,0.54616894,42425.0,42416.0,0.00028825]
[1644639796819,0.54616894,42425.0,42422.0,0.08774802]
[1644639797022,0.42366894,42425.0,42423.0,0.0001]
[1644639797221,0.42366894,42425.0,42416.0,0.00028825]
[1644639797419,0.42366894,42425.0,42416.0,0.0001]
[1644639797622,0.6240705,42425.0,42416.0,0.00028825]
[1644639799072,0.00051237,42423.0,42416.0,0.00028825]
[1644639799472,0.00051237,42423.0,42420.0,0.07909815]
[1644639799674,0.00051237,42423.0,42421.0,0.0001]
[1644639800177,0.41865655,42425.0,42421.0,0.0001]
[1644639800373,0.0021152,42424.0,42421.0,0.0001]
[1644639801176,0.00160284,42424.0,42421.0,0.0001]
[1644639803015,0.2020044,42424.0,42421.0,0.0001]
[1644639803416,0.00160284,42424.0,42421.0,0.0001]
[1644639804819,0.2020044,42424.0,42421.0,0.0001]
[1644639805018,0.00160284,42424.0,42421.0,0.0001]
[1644639805619,0.2020044,42424.0,42422.0,0.00168525]
[1644639805867,0.00160284,42424.0,42422.0,0.00168525]
[1644639806067,0.2020044,42424.0,42422.0,0.00168525]
[1644639807468,0.7,42423.0,42416.0,0.07003412]
[1644639808669,0.00051238,42422.0,42416.0,0.07003412]
[1644639809653,0.20040156,42423.0,42416.0,0.07003412]
[1644639809853,0.00051238,42421.0,42416.0,0.07003412]
[1644639810853,0.20240282,42423.0,42416.0,0.07003412]
[1644639811255,0.00051238,42421.0,42414.0,0.19960977]
[1644639811455,0.00051238,42421.0,42414.0,0.00051246]
[1644639811654,0.18852037,42419.0,42414.0,0.00051246]
[1644639811955,0.15693782,42419.0,42414.0,0.00051246]
[1644639812156,0.07812977,42413.0,42411.0,0.18720355]
[1644639812355,0.0473,42416.0,42408.0,0.19909731]
[1644639812753,0.0473,42416.0,42409.0,0.0001]
[1644639812955,0.0473,42416.0,42409.0,0.19919731]
[1644639813158,0.25424292,42411.0,42410.0,0.0001]
[1644639813569,0.25424292,42411.0,42410.0,0.19970977]
[1644639813772,0.25424292,42411.0,42410.0,0.00061246]
[1644639814570,0.25424292,42411.0,42410.0,0.0001]
[1644639815574,0.25424292,42411.0,42409.0,0.19919731]
[1644639815777,0.25424292,42411.0,42410.0,0.0001]
[1644639817126,0.25424292,42411.0,42409.0,0.0001]
[1644639817321,0.25424292,42411.0,42409.0,0.19919731]
[1644639817522,0.25424292,42411.0,42410.0,0.0001]
[1644639818524,0.20054386,42417.0,42410.0,0.0001]
[1644639819422,0.20164411,42418.0,42411.0,0.00051245]
[1644639819824,0.21700214,42414.0,42411.0,0.00051245]
[1644639820424,0.21700214,42414.0,42410.0,0.0001]
[1644639820625,0.00145634,42411.0,42410.0,0.00061246]
[1644639821698,0.00145634,42411.0,42410.0,0.0001]
[1644639821899,0.00145634,42411.0,42409.0,0.19919731]
[1644639822098,0.00145634,42411.0,42410.0,0.0001]
[1644639825919,0.00145482,42414.0,42410.0,0.0001]
[1644639826121,0.00145482,42414.0,42410.0,0.00028816]
[1644639826318,0.00145482,42414.0,42410.0,0.0001]
[1644639826519,0.00145482,42414.0,42410.0,0.00028816]
[1644639826722,0.00145482,42414.0,42410.0,0.00061246]
[1644639826923,0.00145482,42414.0,42410.0,0.00080062]
[1644639827322,0.00145482,42414.0,42410.0,0.00051246]
[1644639827723,0.00145482,42414.0,42409.0,0.00028816]
[1644639827923,0.00145482,42414.0,42410.0,0.00051246]
[1644639828782,0.0473,42413.0,42410.0,0.00051246]
[1644639828977,0.2641918,42412.0,42410.0,0.00051246]
[1644639829579,0.46609576,42412.0,42410.0,0.00051246]
[1644639829777,0.26551819,42411.0,42410.0,0.00051246]
[1644639830180,0.26551819,42411.0,42406.0,0.0001]
[1644639830181,0.18967689,42408.0,42406.0,0.00028816]
[1644639830379,0.18967689,42408.0,42406.0,0.0001]
[1644639830778,0.18967689,42408.0,42406.0,0.19919731]
[1644639830978,0.18967689,42408.0,42407.0,0.0001]
[1644639835219,0.18967689,42408.0,42406.0,0.00028816]
[1644639835419,0.18967689,42408.0,42406.0,0.0001]
[1644639835870,0.19236494,42408.0,42406.0,0.0001]
[1644639836272,0.25652178,42409.0,42406.0,0.0001]
[1644639836476,0.25652178,42409.0,42406.0,0.00028816]
[1644639836671,0.25652178,42409.0,42406.0,0.0001]
[1644639836873,0.25652178,42409.0,42406.0,0.00028816]
[1644639839820,0.53299793,42412.0,42406.0,0.00028816]
[1644639840223,0.53299793,42412.0,42408.0,0.00171794]
[1644639840621,0.28214285,42412.0,42408.0,0.00171794]
[1644639841021,0.28214285,42412.0,42408.0,0.00223041]
[1644639841724,0.7,42411.0,42406.0,0.00012611]
[1644639842120,0.7,42411.0,42405.0,0.05909311]
[1644639843023,0.61342457,42412.0,42405.0,0.05909311]
[1644639843471,0.28214285,42412.0,42405.0,0.05909311]
[1644639843671,0.31665296,42415.0,42405.0,0.05909311]
[1644639843672,0.1236355,42415.0,42405.0,0.05909311]
[1644639843872,0.1236355,42415.0,42405.0,0.25819042]
[1644639844077,0.1236355,42415.0,42406.0,0.19909731]
[1644639844280,0.1236355,42415.0,42408.0,0.058962]
[1644639844476,0.4647854,42417.0,42408.0,0.058962]
[1644639844673,0.26424154,42417.0,42408.0,0.058962]
[1644639844875,0.0005124,42415.0,42410.0,0.23609217]
[1644639845475,0.0005124,42415.0,42411.0,0.07765262]
[1644639845675,0.20054386,42418.0,42411.0,0.07777873]
[1644639845876,0.20054386,42418.0,42411.0,0.13673773]
[1644639846778,0.20051636,42418.0,42411.0,0.13673773]
[1644639846975,0.20051636,42418.0,42412.0,0.0001]
[1644639847221,0.20051636,42417.0,42412.0,0.00022611]
[1644639847419,0.20051636,42417.0,42412.0,0.0001]
[1644639847623,0.20051636,42417.0,42412.0,0.00022611]
[1644639848420,0.20102931,42417.0,42412.0,0.00022611]
[1644639849424,0.20051636,42416.0,42412.0,0.00022611]
[1644639849622,0.20053809,42417.0,42407.0,0.19994121]
[1644639849824,0.20053809,42417.0,42408.0,0.0001]
[1644639850023,0.20053809,42417.0,42409.0,0.058964]
[1644639850224,0.2015693,42417.0,42410.0,0.0001]
[1644639850623,0.2015693,42417.0,42410.0,0.00022611]
[1644639851076,0.20053809,42416.0,42410.0,0.00022611]
[1644639852476,0.2015693,42417.0,42410.0,0.00022611]
[1644639852875,0.2015693,42417.0,42410.0,0.27786073]
[1644639853076,0.2015693,42417.0,42411.0,0.0001]
[1644639853278,0.2015693,42417.0,42411.0,0.00022611]
[1644639853476,0.2015693,42417.0,42410.0,0.0007392]
[1644639853678,0.2015693,42417.0,42410.0,0.28175907]
[1644639853878,0.2015693,42417.0,42411.0,0.0001]
[1644639854078,0.2015693,42417.0,42411.0,0.00022611]
[1644639854283,0.2015693,42417.0,42415.0,0.06504202]
[1644639854478,0.2015693,42417.0,42416.0,0.0001]
[1644639855119,0.2015693,42417.0,42416.0,0.19654721]
[1644639855321,0.20053809,42417.0,42416.0,0.19654721]
[1644639855533,0.2010511,42419.0,42417.0,0.328585]
[1644639855721,0.00051301,42419.0,42418.0,0.61650105]
[1644639855921,0.00051301,42419.0,42418.0,0.33521605]
[1644639856520,0.20053809,42422.0,42419.0,0.058947]
[1644639856720,0.000513,42421.0,42420.0,0.0473]
[1644639857721,0.20053809,42422.0,42420.0,0.0473]
[1644639858383,0.20053809,42422.0,42415.0,0.34798155]
[1644639858584,0.20053809,42422.0,42415.0,0.39528155]
[1644639859083,0.000513,42421.0,42415.0,0.39528155]
[1644639860085,0.20053809,42422.0,42415.0,0.39528155]
[1644639860283,0.00051301,42420.0,42415.0,0.39528155]
[1644639860483,0.00051301,42420.0,42415.0,0.11234202]
[1644639860684,0.00051301,42420.0,42416.0,0.0001]
[1644639861384,0.00242039,42421.0,42416.0,0.0001]
[1644639861585,0.00047074,42420.0,42417.0,0.058952]
[1644639861783,0.00047074,42420.0,42418.0,0.0001]
[1644639862622,0.00242039,42421.0,42418.0,0.0001]
[1644639862820,0.00289113,42421.0,42418.0,0.0001]
[1644639863521,0.23028703,42420.0,42418.0,0.0001]
[1644639863721,0.23028703,42420.0,42416.0,0.0001]
[1644639865129,0.23028703,42420.0,42414.0,0.0001]
[1644639865130,0.23075821,42420.0,42414.0,0.0001]
[1644639865525,0.23075821,42420.0,42413.0,0.0001]
[1644639865725,0.00103324,42419.0,42413.0,0.059057]
[1644639865973,0.00103324,42419.0,42414.0,0.0001]
[1644639866472,0.00154668,42419.0,42414.0,0.0001]
[1644639866674,0.00154668,42419.0,42416.0,0.08039653]
[1644639866874,0.00154668,42419.0,42417.0,0.0001]
[1644639867274,0.00103324,42419.0,42417.0,0.0001]
[1644639867875,0.00103324,42419.0,42414.0,0.0001]
[1644639868274,0.00103324,42419.0,42412.0,0.0001]
[1644639868476,0.00103324,42419.0,42412.0,0.1998151]
[1644639868676,0.00154668,42419.0,42413.0,0.0001]
[1644639869074,0.2112003,42419.0,42413.0,0.0001]
[1644639869275,0.2112003,42419.0,42413.0,0.059057]
[1644639869475,0.2112003,42419.0,42414.0,0.0001]
[1644639869721,0.21068686,42419.0,42414.0,0.0001]
[1644639869921,0.21120031,42419.0,42414.0,0.0001]
[1644639870522,0.21220281,42419.0,42417.0,0.08361114]
[1644639870722,0.21220281,42419.0,42418.0,0.0001]
[1644639870923,0.21168936,42419.0,42418.0,0.0001]
[1644639871728,0.7,42418.0,42413.0,0.05893734]
[1644639872525,0.00051344,42419.0,42413.0,0.05893734]
[1644639873128,0.00051344,42419.0,42414.0,0.06364611]
[1644639873368,0.25680054,42420.0,42414.0,0.06364611]
[1644639873569,0.00051344,42419.0,42414.0,0.06364611]
[1644639874571,0.25680054,42420.0,42414.0,0.06364611]
[1644639874774,0.00051345,42419.0,42414.0,0.06364611]
[1644639875371,0.00137717,42417.0,42414.0,0.06535532]
[1644639876972,0.00137717,42417.0,42415.0,0.0001]
[1644639880424,0.00189856,42419.0,42415.0,0.0001]
[1644639880625,0.00138512,42419.0,42416.0,0.058955]
[1644639880873,0.00189856,42419.0,42417.0,0.0001]
[1644639881671,0.00138512,42419.0,42417.0,0.0001]
[1644639885523,0.00138512,42419.0,42418.0,0.00150503]
[1644639890471,0.00051344,42421.0,42418.0,0.00150503]
[1644639891278,0.20220572,42423.0,42418.0,0.00150503]
[1644639891674,0.24633431,42424.0,42418.0,0.00150503]
[1644639894223,0.19078116,42424.0,42418.0,0.00150503]
[1644639894421,0.00023091,42424.0,42419.0,0.05895]
[1644639894624,0.25064544,42425.0,42420.0,0.0001]
[1644639894822,0.25087635,42425.0,42420.0,0.0001]
[1644639895022,0.25087635,42425.0,42418.0,0.00150503]
[1644639895725,0.31876616,42425.0,42418.0,0.00150503]
[1644639895974,0.31876616,42425.0,42418.0,0.00160503]
[1644639896174,0.25064544,42424.0,42418.0,0.20945114]
[1644639896376,0.25138977,42424.0,42419.0,0.0001]
[1644639897374,0.25087635,42424.0,42419.0,0.0001]
[1644639897575,0.25138977,42424.0,42419.0,0.0001]
[1644639898376,0.25064544,42423.0,42419.0,0.0001]
[1644639898877,0.25064544,42423.0,42418.0,0.00160503]
[1644639899276,0.83815984,42426.0,42418.0,0.00160503]
[1644639899477,0.00023132,42424.0,42418.0,0.00150503]
[1644639899722,0.83815984,42426.0,42418.0,0.00150503]
[1644639899723,0.75747063,42426.0,42418.0,0.00150503]
[1644639900324,0.75747063,42426.0,42420.0,0.00205166]
[1644639900325,0.08892214,42425.0,42420.0,0.00205166]
[1644639900923,0.30077453,42424.0,42420.0,0.00205166]
[1644639901221,0.29368015,42423.0,42420.0,0.00205166]
[1644639901825,0.29368015,42423.0,42416.0,1.562e-05]
[1644639902025,0.2006165,42419.0,42416.0,1.562e-05]
[1644639906184,0.2006165,42419.0,42416.0,0.05896962]
[1644639906585,0.2006165,42419.0,42417.0,0.21482523]
[1644639906985,0.2006165,42419.0,42418.0,1.562e-05]
[1644639909841,0.2006165,42419.0,42416.0,0.00052911]
[1644639910240,0.00101327,42418.0,42416.0,0.00052911]
[1644639910442,0.00101327,42418.0,42416.0,1.562e-05]
[1644639910642,0.12623772,42419.0,42415.0,0.00052912]
[1644639911672,0.12623772,42419.0,42415.0,1.562e-05]
[1644639911874,0.12623772,42419.0,42415.0,0.00052912]
[1644639912875,0.12623772,42419.0,42415.0,1.562e-05]
[1644639913075,0.12623772,42419.0,42415.0,0.00052912]
[1644639914075,0.12623772,42419.0,42415.0,1.562e-05]
[1644639914276,0.12623772,42419.0,42415.0,0.00052912]
[1644639915334,0.12623772,42419.0,42415.0,1.562e-05]
[1644639915535,0.00161307,42418.0,42417.0,0.0023636]
[1644639918473,0.00161307,42418.0,42417.0,0.09134362]
[1644639918671,0.00161307,42418.0,42417.0,0.09135924]
[1644639919271,0.00161307,42418.0,42417.0,0.00237922]
[1644639920272,0.00175778,42418.0,42417.0,1.562e-05]
[1644639922323,0.00175778,42418.0,42416.0,1.562e-05]
[1644639922920,0.00161307,42421.0,42416.0,1.562e-05]
[1644639923921,0.00161307,42421.0,42416.0,0.00051349]
[1644639924120,0.00161307,42421.0,42416.0,0.08918834]
[1644639924323,0.00161307,42421.0,42417.0,0.05896862]
[1644639924522,0.00161307,42421.0,42418.0,1.562e-05]
[1644639925522,0.25237457,42423.0,42418.0,1.562e-05]
[1644639925722,0.00161307,42423.0,42418.0,1.562e-05]
[1644639926368,0.00161307,42423.0,42418.0,0.00052911]
[1644639926769,0.00031062,42423.0,42418.0,0.00052911]
[1644639926968,0.00031062,42423.0,42420.0,0.004679]
[1644639927370,0.08414689,42423.0,42420.0,0.004679]
[1644639927769,0.00031062,42423.0,42420.0,0.004679]
[1644639928672,0.25107212,42423.0,42420.0,0.004679]
[1644639930422,0.2507615,42423.0,42420.0,0.004679]
[1644639931225,0.06862403,42422.0,42420.0,0.004679]
[1644639931827,0.7,42421.0,42414.0,0.11622169]
[1644639932826,0.25862705,42419.0,42414.0,0.11622169]
[1644639933026,0.25862705,42419.0,42415.0,0.19946176]
[1644639933476,0.25862705,42419.0,42415.0,0.19964027]
[1644639933876,0.20060747,42420.0,42415.0,0.19964027]
[1644639934279,0.20060747,42421.0,42416.0,0.19946176]
[1644639934679,0.20060747,42421.0,42416.0,0.19997525]
[1644639935680,0.20060747,42421.0,42416.0,0.19946176]
[1644639935883,0.00123897,42420.0,42416.0,0.19997525]
[1644639936982,0.00123897,42420.0,42416.0,0.19946176]
[1644639937222,0.00123897,42420.0,42417.0,0.0001]
[1644639938624,0.00123897,42420.0,42418.0,0.21996816]
[1644639938823,0.00123897,42420.0,42419.0,0.0001]
[1644639939828,0.00123897,42420.0,42419.0,0.08225363]
[1644639943773,0.00123897,42420.0,42419.0,0.0001]
[1644639950881,0.07258076,42420.0,42417.0,0.0006135]
[1644639951283,0.07258076,42420.0,42417.0,0.0001]
[1644639952429,0.12583851,42424.0,42417.0,0.0001]
[1644639952631,0.1253251,42424.0,42417.0,0.0001]
[1644639952829,0.12583851,42424.0,42417.0,0.0001]
[1644639953830,0.1253251,42424.0,42417.0,0.0001]
[1644639954030,0.12583852,42424.0,42417.0,0.27227258]
[1644639954231,0.12583852,42424.0,42418.0,0.0001]
[1644639955029,0.12583852,42424.0,42417.0,0.0001]
[1644639955030,0.1253251,42424.0,42417.0,0.0001]
[1644639955230,0.12583853,42424.0,42417.0,0.05956551]
[1644639955430,0.00127814,42419.0,42418.0,0.0001]
[1644639956076,0.00127814,42419.0,42417.0,0.00061351]
[1644639956278,0.00127814,42419.0,42417.0,0.0001]
[1644639960230,0.00279338,42419.0,42417.0,0.0001]
[1644639960430,0.00279338,42419.0,42416.0,0.27259735]
[1644639960629,0.00279338,42419.0,42417.0,0.0001]
[1644639961034,0.00279338,42419.0,42415.0,0.0001]
[1644639961232,0.00279338,42419.0,42417.0,0.058952]
[1644639961531,0.00279338,42419.0,42418.0,0.27578143]
[1644639961929,0.00279338,42419.0,42418.0,0.28120669]
[1644639962534,0.00279338,42419.0,42418.0,0.48059424]
[1644639963377,0.00279338,42419.0,42418.0,0.19938755]
[1644639964379,0.00279338,42419.0,42417.0,0.22750073]
[1644639964578,0.00279338,42419.0,42418.0,0.19938755]
[1644639965581,0.20059272,42423.0,42418.0,0.19938755]
[1644639966183,0.20059272,42423.0,42418.0,0.26854987]
[1644639966380,0.20059272,42422.0,42418.0,0.06916232]
[1644639967227,0.20059272,42422.0,42419.0,0.0001]
[1644639969231,0.20059272,42422.0,42418.0,0.00061349]
[1644639969431,0.20059272,42422.0,42418.0,0.0001]
[1644639969631,0.20059272,42422.0,42418.0,0.00061349]
[1644639970032,0.20082404,42422.0,42418.0,0.00061349]
[1644639970633,0.20082404,42422.0,42418.0,0.0001]
[1644639970634,0.20059272,42420.0,42418.0,0.0001]
[1644639970875,0.20059272,42419.0,42418.0,0.00051349]
[1644639971278,0.25074134,42421.0,42418.0,0.00051349]
[1644639971481,0.20060989,42419.0,42418.0,0.00051349]
[1644639971676,0.07125434,42420.0,42418.0,0.00051349]
[1644639971878,0.07125434,42420.0,42416.0,0.00283012]
[1644639972078,0.20060982,42418.0,42416.0,0.00334361]
[1644639972679,0.25074134,42421.0,42416.0,0.00334361]
[1644639972680,0.20060982,42419.0,42416.0,0.00334361]
[1644639973081,0.20060982,42419.0,42416.0,0.00283012]
[1644639975529,0.20060982,42419.0,42415.0,0.0006135]
[1644639975734,0.20060982,42419.0,42415.0,0.0005135]
[1644639975930,0.20060982,42419.0,42415.0,0.0006135]
[1644639976529,0.20060982,42419.0,42415.0,0.0001]
[1644639976734,0.20060982,42419.0,42415.0,0.0006135]
[1644639977831,0.20060982,42419.0,42415.0,0.0001]
[1644639978032,0.20060982,42420.0,42415.0,0.0006135]
[1644639979075,0.20060982,42420.0,42415.0,0.0001]
[1644639979279,0.20060982,42420.0,42415.0,0.0006135]
[1644639980175,0.20060982,42420.0,42415.0,0.0001]
[1644639980377,0.20060982,42420.0,42415.0,0.0006135]
[1644639981379,0.13330747,42422.0,42415.0,0.0001]
[1644639981579,0.1335388,42422.0,42415.0,0.0006135]
[1644639981979,0.08215643,42422.0,42415.0,0.0006135]
[1644639982628,0.08215643,42422.0,42415.0,0.0001]
[1644639982828,0.00023133,42422.0,42416.0,0.05946549]
[1644639983027,0.23463448,42423.0,42417.0,0.0001]
[1644639983228,0.00023133,42422.0,42417.0,0.0001]
[1644639983428,0.23463448,42423.0,42417.0,0.0001]
[1644639983928,0.23463448,42423.0,42415.0,0.0001]
[1644639984129,0.23463448,42423.0,42418.0,0.00051349]
[1644639984333,0.0872639,42422.0,42418.0,0.00051349]
[1644639984528,0.08749523,42422.0,42418.0,0.00051349]
[1644639985130,0.08749523,42422.0,42415.0,0.0001]
[1644639985330,0.08749523,42422.0,42418.0,0.00051349]
[1644639986276,0.08749523,42422.0,42417.0,0.00173605]
[1644639986478,0.08749523,42422.0,42418.0,0.00049516]
[1644639986982,0.00023133,42422.0,42418.0,0.00049516]
[1644639987181,0.00023133,42423.0,42418.0,0.00049516]
[1644639987379,0.00023133,42424.0,42417.0,0.00183605]
[1644639987579,0.00023133,42425.0,42418.0,0.00049516]
[1644639987779,0.2007264,42426.0,42418.0,0.00049516]
[1644639988080,0.24469223,42425.0,42418.0,0.00049516]
[1644639988679,0.24469223,42425.0,42417.0,0.00183605]
[1644639988881,0.24469223,42425.0,42419.0,0.00049515]
[1644639989080,0.20049507,42426.0,42419.0,0.00049515]
[1644639989283,0.00049507,42426.0,42419.0,0.05954215]
[1644639989485,0.00049507,42426.0,42420.0,0.0001]
[1644639989726,0.00049507,42426.0,42420.0,0.27584031]
[1644639989926,0.557,42427.0,42421.0,0.0001]
[1644639990127,0.000479,42426.0,42421.0,0.0001]
[1644639990525,0.25117419,42426.0,42422.0,0.058942]
[1644639990725,0.25117419,42426.0,42423.0,0.0001]
[1644639991124,0.25069519,42426.0,42423.0,0.0001]
[1644639991525,0.20055969,42424.0,42423.0,0.0001]
[1644639991926,0.20055969,42424.0,42423.0,0.1496945]
[1644639992230,0.20055969,42425.0,42423.0,0.1496945]
[1644639992626,0.1,42429.0,42423.0,0.1496945]
[1644639992627,0.20055969,42424.0,42423.0,0.1496945]
[1644639993384,0.00048104,42426.0,42423.0,0.1496945]
[1644639993385,0.25117623,42426.0,42423.0,0.1496945]
[1644639993587,0.20055676,42424.0,42423.0,0.1496945]
[1644639993785,0.25117623,42426.0,42422.0,0.058942]
[1644639993985,0.20055679,42425.0,42422.0,0.058942]
[1644639995685,0.20055679,42425.0,42422.0,0.00121796]
[1644639996887,0.50433995,42425.0,42422.0,0.00121796]
[1644639997927,0.30378316,42425.0,42422.0,0.00121796]
[1644639998930,0.50433995,42425.0,42422.0,0.00121796]
[1644639999128,0.76783167,42425.0,42422.0,0.00121796]
[1644640000533,0.00131019,42424.0,42422.0,0.00121796]
[1644640000733,0.00118219,42424.0,42422.0,0.00121796]
[1644640003390,0.20055679,42423.0,42422.0,0.00121796]
[1644640003789,0.47329168,42423.0,42422.0,0.00121796]
[1644640009081,0.20055679,42423.0,42422.0,0.00121796]
[1644640009781,0.20055679,42424.0,42422.0,0.00121796]
[1644640009982,0.20055679,42423.0,42422.0,0.00121796]
[1644640011183,0.47746195,42423.0,42422.0,0.00121796]
[1644640011387,0.27690516,42423.0,42422.0,0.00121796]
[1644640011583,0.47745626,42423.0,42422.0,0.00121796]
[1644640011787,0.27690516,42423.0,42422.0,0.00121796]
[1644640012747,0.47745593,42423.0,42422.0,0.00121796]
[1644640013148,0.56750618,42425.0,42422.0,0.00121796]
[1644640013347,0.2005465,42423.0,42422.0,0.00121796]
[1644640014351,0.25069519,42424.0,42422.0,0.00121796]
[1644640014550,0.2751616,42425.0,42422.0,0.00121796]
[1644640014551,0.48054541,42423.0,42422.0,0.00121796]
[1644640014750,0.27999565,42423.0,42422.0,0.00121796]
[1644640020428,0.53069084,42423.0,42422.0,0.00121796]
[1644640022032,0.7,42422.0,42415.0,6.806e-05]
[1644640022233,0.20056302,42420.0,42416.0,0.00019033]
[1644640022438,0.20056302,42420.0,42415.0,0.00025839]
[1644640022634,0.20056302,42420.0,42415.0,6.806e-05]
[1644640023234,0.20056302,42420.0,42415.0,0.00025839]
[1644640023235,0.20969741,42419.0,42415.0,0.00025839]
[1644640023496,0.20969741,42419.0,42415.0,6.806e-05]
[1644640023692,0.20969741,42419.0,42415.0,0.00025839]
[1644640023891,0.20969741,42419.0,42415.0,6.806e-05]
[1644640024094,0.20969741,42419.0,42415.0,0.00025839]
[1644640025195,0.06519368,42416.0,42415.0,0.00025839]
[1644640025394,0.06519368,42416.0,42415.0,6.806e-05]
[1644640026795,0.20969741,42419.0,42415.0,6.806e-05]
[1644640027233,0.20969741,42419.0,42414.0,0.00025839]
[1644640027432,0.2429969,42417.0,42415.0,0.0005135]
[1644640028231,0.32623208,42417.0,42415.0,0.0005135]
[1644640028432,0.32623208,42417.0,42414.0,0.00025839]
[1644640028636,0.32623208,42417.0,42414.0,0.00077189]
[1644640029636,0.32623208,42417.0,42414.0,0.00025839]
[1644640031485,0.00104393,42418.0,42414.0,0.00025839]